fUST/lending_fUST_20240818
["ID","MTS","AMOUNT","RATE_DAILY","PERIOD"]
[335169382,1723925442515,-283.582932,0.0002987,7]
[335169383,1723925442526,-151.0,0.0002987,7]
[335169384,1723925442535,-358.445336,0.0002987,2]
[335169385,1723925442545,-358.445336,0.0002987,2]
[335169386,1723925442555,-151.0,0.0002987,7]
[335169387,1723925442564,-151.0,0.0002987,7]
[335169388,1723925442576,-234.067036,0.0002987,7]
[335169389,1723925442585,-234.067036,0.0002987,7]
[335169390,1723925442595,-50326.8348437,0.0002988,30]
[335169391,1723925442605,-151.0,0.0002988,7]
[335169392,1723925442614,-151.0,0.0002988,7]
[335169393,1723925442624,-151.0,0.0002988,7]
[335169394,1723925442634,-318.0,0.000299,14]
[335169395,1723925442643,-151.0,0.0003,120]
[335169396,1723925442653,-151.0,0.0003,120]
[335169397,1723925442665,-512.00105949,0.0003,2]
[335169475,1723925545162,119.2183974,0.00015001,2]
[335169476,1723925545183,98.17177123,0.00015001,2]
[335169477,1723925583132,155.60484787,0.00014519,2]
[335169478,1723925610375,3594.56006351,0.00015001,2]
[335169482,1723925821598,371.070721,0.00014247,2]
[335169490,1723926322016,166.868743,0.00014247,2]
[335169492,1723926343147,-1110.60501038,0.00017269,2]
[335169493,1723926343169,-820.1515679,0.00018083,2]
[335169497,1723926426216,-924.71192117,0.00018083,2]
[335169498,1723926433138,-387.92961358,0.00018083,2]
[335169499,1723926433159,-267.28219318,0.00018183,2]
[335169500,1723926433180,-52.05281095,0.0002,2]
[335169501,1723926444096,-104.54884665,0.0002,2]
[335169502,1723926444119,-351.24558467,0.00020707,2]
[335169503,1723926448086,-19.82513633,0.00020707,2]
[335169504,1723926448107,-1450.00182121,0.00022,30]
[335169505,1723926448129,-300.0,0.00022626,2]
[335169506,1723926448151,-0.44333837,0.00022627,2]
[335169507,1723926451096,-473.81616645,0.00022627,2]
[335169510,1723926525382,165.07768809,0.00015,2]
[335169511,1723926545137,-210.99393726,0.000176,2]
[335169512,1723926566123,-180.43,0.0001998,3]
[335169513,1723926566146,-53.32911216,0.00019989,2]
[335169519,1723926617190,200.0,0.00014519,2]
[335169564,1723926632259,-166.58095,0.00019558,2]
[335169566,1723926632269,-1183.419039,0.000199,2]
[335169736,1723926638227,-2807.37002394,0.000199,2]
[335169738,1723926638237,-150.35,0.0001998,3]
[335169740,1723926638246,-451.1,0.0001998,3]
[335169742,1723926638255,-300.0,0.00019989,2]
[335169744,1723926638264,-561.90977423,0.00019989,2]
[335169746,1723926638273,-500.0,0.00019989,2]
[335169748,1723926638282,-500.0,0.00019989,2]
[335169750,1723926638293,-188.29490553,0.00019989,2]
[335169752,1723926638303,-500.0,0.00019989,2]
[335169754,1723926638312,-500.0,0.00019989,2]
[335169756,1723926638321,-500.0,0.00019989,2]
[335169758,1723926638330,-500.0,0.00019989,2]
[335169760,1723926638339,-500.0,0.00019989,2]
[335169762,1723926638348,-500.0,0.00019989,2]
[335169764,1723926638357,-500.0,0.00019989,2]
[335169766,1723926638367,-543.48887826,0.00019989,2]
[335169768,1723926638377,-500.0,0.00019989,2]
[335169770,1723926638386,-500.0,0.00019989,2]
[335169772,1723926638395,-500.0,0.00019989,2]
[335169774,1723926638405,-500.0,0.00019989,2]
[335169776,1723926638414,-500.0,0.00019989,2]
[335169778,1723926638423,-500.0,0.00019989,2]
[335169780,1723926638432,-500.0,0.00019989,2]
[335169782,1723926638441,-215.40808652,0.00019989,2]
[335169784,1723926638450,-500.0,0.00019989,2]
[335169786,1723926638460,-500.0,0.00019989,2]
[335169788,1723926638470,-180.09081098,0.00019989,2]
[335169790,1723926638479,-500.0,0.00019989,2]
[335169792,1723926638491,-413.01858921,0.00019989,2]
[335169794,1723926638500,-500.0,0.00019989,2]
[335169796,1723926638510,-500.0,0.00019989,2]
[335169798,1723926638519,-500.0,0.00019989,2]
[335169800,1723926638529,-500.0,0.00019989,2]
[335169802,1723926638539,-500.0,0.00019989,2]
[335169805,1723926638548,-500.0,0.00019989,2]
[335169807,1723926638560,-500.0,0.00019989,2]
[335169809,1723926638569,-500.0,0.00019989,2]
[335169811,1723926638579,-500.0,0.00019989,2]
[335169813,1723926638588,-500.0,0.00019989,2]
[335169815,1723926638597,-500.0,0.00019989,2]
[335169817,1723926638606,-500.0,0.00019989,2]
[335169819,1723926638615,-500.0,0.00019989,2]
[335169821,1723926638624,-500.0,0.00019989,2]
[335169823,1723926638634,-500.0,0.00019989,2]
[335169825,1723926638643,-500.0,0.00019989,2]
[335169827,1723926638652,-500.0,0.00019989,2]
[335169829,1723926638661,-500.0,0.00019989,2]
[335169831,1723926638670,-500.0,0.00019989,2]
[335169833,1723926638680,-500.0,0.00019989,2]
[335169835,1723926638689,-500.0,0.00019989,2]
[335169837,1723926638699,-500.0,0.00019989,2]
[335169839,1723926638709,-500.0,0.00019989,2]
[335169841,1723926638718,-630.56333955,0.00019989,2]
[335169844,1723926638730,-500.0,0.00019989,2]
[335169846,1723926638739,-500.0,0.00019989,2]
[335169848,1723926638750,-500.0,0.00019989,2]
[335169850,1723926638759,-500.0,0.00019989,2]
[335169852,1723926638768,-500.0,0.00019989,2]
[335169854,1723926638777,-500.0,0.00019989,2]
[335169865,1723926638866,-500.0,0.00019989,2]
[335169867,1723926638877,-500.0,0.00019989,2]
[335169869,1723926638886,-500.0,0.00019989,2]
[335169871,1723926638895,-286536.10212643,0.0001999,2]
[335169873,1723926638905,-156.6016576,0.0002,2]
[335169875,1723926638914,-185.89434159,0.0002,2]
[335169877,1723926638923,-271.4297146,0.0002,2]
[335169879,1723926638933,-435.0,0.0002,2]
[335169881,1723926638942,-154.68290005,0.0002,2]
[335169883,1723926638951,-465.00157103,0.00020894,2]
[335169885,1723926638961,-300.7,0.0002135,3]
[335169887,1723926638970,-628.87521765,0.00021918,2]
[335169889,1723926638979,-420.0,0.00021988,2]
[335169891,1723926638987,-2903.77396404,0.00022,30]
[335169893,1723926638997,-270.7098517,0.00022,2]
[335169895,1723926639006,-3990.78906292,0.00022043,2]
[335169897,1723926639015,-1313.38444652,0.000223,2]
[335169899,1723926639025,-302.39527296,0.00022469,2]
[335169901,1723926639034,-453.63817816,0.00022469,2]
[335169904,1723926639043,-257.33,0.00022597,120]
[335169906,1723926639053,-150.5,0.00022597,120]
[335169908,1723926639062,-150.5,0.00022607,120]
[335169910,1723926639071,-257.64,0.00022607,120]
[335169912,1723926639081,-150.5,0.00022607,120]
[335169914,1723926639090,-150.5,0.00022617,120]
[335169916,1723926639099,-150.5,0.00022617,120]
[335169918,1723926639109,-150.5,0.00022617,120]
[335169920,1723926639118,-9577.81913598,0.00022627,2]
[335169922,1723926639128,-10506.43940705,0.00022627,2]
[335169924,1723926639137,-302.39527296,0.00022694,2]
[335169926,1723926639147,-1002.504596,0.00022775,2]
[335169928,1723926639158,-466.2591763,0.00022811,2]
[335169930,1723926639168,-302.39527296,0.00022918,2]
[335169932,1723926639177,-239.43031736,0.00023,2]
[335169934,1723926639187,-11396.33767732,0.00023,2]
[335169936,1723926639196,-453.59290944,0.00023143,4]
[335169938,1723926639205,-157.894737,0.00023356,2]
[335169940,1723926639214,-453.59290944,0.00023368,4]
[335169942,1723926639223,-162.972936,0.00023371,2]
[335169944,1723926639233,-157.894737,0.00023424,2]
[335169946,1723926639242,-157.894737,0.00023491,2]
[335169948,1723926639251,-157.894737,0.00023559,2]
[335169950,1723926639260,-453.59290944,0.00023592,4]
[335169952,1723926639269,-157.894737,0.00023627,2]
[335169954,1723926639282,-166.868743,0.00023688,2]
[335169956,1723926639294,-157.894737,0.00023694,2]
[335169958,1723926639304,-157.894737,0.00023762,2]
[335169960,1723926639314,-453.59290944,0.00023817,4]
[335169962,1723926639326,-157.894737,0.00023829,2]
[335169964,1723926639336,-157.894737,0.00023897,2]
[335169966,1723926639346,-996.83420395,0.000239,2]
[335169969,1723926639360,-157.894737,0.00023965,2]
[335169971,1723926639371,-207564.67432684,0.00024,60]
[335170100,1723926640745,-253177.83328396,0.00024,60]
[335170102,1723926640755,-157.894737,0.00024032,2]
[335170104,1723926640764,-293.80304922,0.00024042,4]
[335170106,1723926640774,-157.894737,0.000241,2]
[335170108,1723926640783,-157.894737,0.00024168,2]
[335170110,1723926640795,-3990.78906292,0.00024186,2]
[335170112,1723926640805,-587.0,0.00024187,2]
[335170114,1723926640815,-157.894737,0.00024235,2]
[335170116,1723926640823,-157.894737,0.00024303,2]
[335170127,1723926640908,-157.894737,0.0002437,2]
[335170129,1723926640918,-157.894737,0.00024438,2]
[335170131,1723926640929,-157.894737,0.00024506,2]
[335170133,1723926640939,-157.894737,0.00024573,2]
[335170135,1723926640950,-10339.94871612,0.00024613,2]
[335170137,1723926640959,-5243.39070357,0.00024657,2]
[335170140,1723926640970,-380.0,0.00024658,2]
[335170142,1723926640981,-782.32633188,0.00024662,2]
[335170144,1723926640992,-1857.35257927,0.00024688,2]
[335170146,1723926641002,-154.68290005,0.00024688,2]
[335170148,1723926641013,-882.69740535,0.00024688,2]
[335170150,1723926641023,-192.71,0.0002475,120]
[335170152,1723926641034,-277.59237245,0.00024756,2]
[335170155,1723926641048,-160.78322974,0.00024814,2]
[335170157,1723926641058,-160.78322974,0.00024814,2]
[335170159,1723926641067,-194.72220901,0.00025,2]
[335170161,1723926641077,-12214.20624693,0.00025,30]
[335170163,1723926641086,-191.23578673,0.00025,2]
[335170165,1723926641096,-154.68290005,0.00025,2]
[335170167,1723926641107,-1028.81164894,0.00025,2]
[335170169,1723926641118,-2139.56542197,0.00025,120]
[335170171,1723926641128,-2913.79308419,0.00025,2]
[335170173,1723926641138,-996.83420395,0.00025122,2]
[335170175,1723926641147,-1414.0,0.00025292,2]
[335170177,1723926641157,-8341.0,0.00025292,2]
[335170179,1723926641168,-282.046,0.00025292,2]
[335170181,1723926641178,-521.0,0.00025292,2]
[335170183,1723926641189,-1000.5,0.00026,31]
[335170185,1723926641199,-500.5,0.00026,31]
[335170187,1723926641209,-191.7,0.00026,31]
[335170190,1723926641219,-5700.88050182,0.00026,2]
[335170192,1723926641230,-3990.78906292,0.00026329,2]
[335170194,1723926641241,-996.83420395,0.00026344,2]
[335170196,1723926641251,-823.0,0.00026605,2]
[335170198,1723926641260,-2862.16299775,0.000269,2]
[335170200,1723926641270,-1110.60501038,0.00026999,2]
[335170202,1723926641279,-150.112233,0.00027,5]
[335170204,1723926641291,-2462.48952108,0.00027,2]
[335170206,1723926641300,-516.0,0.00027,2]
[335170208,1723926641310,-371.070721,0.00027167,2]
[335170210,1723926641320,-3000.0,0.000272,2]
[335170212,1723926641329,-15460.308762,0.000272,3]
[335170214,1723926641339,-3000.0,0.0002721,2]
[335170216,1723926641349,-3000.0,0.0002722,2]
[335170218,1723926641358,-3000.0,0.0002723,2]
[335170220,1723926641371,-3000.0,0.0002724,2]
[335170222,1723926641381,-3000.0,0.0002725,2]
[335170224,1723926641391,-3000.0,0.0002726,2]
[335170226,1723926641400,-3000.0,0.0002727,2]
[335170228,1723926641410,-3000.0,0.0002728,2]
[335170230,1723926641420,-3000.0,0.0002729,2]
[335170232,1723926641429,-3000.0,0.000273,2]
[335170234,1723926641439,-3000.0,0.0002731,2]
[335170237,1723926641450,-5217.29890857,0.0002732,11]
[335170239,1723926641459,-3000.0,0.0002732,2]
[335170241,1723926641469,-3000.0,0.0002733,2]
[335170243,1723926641478,-3000.0,0.0002734,2]
[335170244,1723926641491,-3000.0,0.0002735,2]
[335170246,1723926641500,-3000.0,0.0002736,2]
[335170248,1723926641509,-15460.308762,0.0002736,3]
[335170250,1723926641519,-3000.0,0.0002737,2]
[335170253,1723926641529,-3000.0,0.0002738,2]
[335170255,1723926641539,-3000.0,0.0002739,2]
[335170257,1723926641550,-1203.10980597,0.0002739,2]
[335170259,1723926641561,-207.8143395,0.00027397,2]
[335170261,1723926641571,-3000.0,0.000274,2]
[335170263,1723926641581,-3000.0,0.0002741,2]
[335170265,1723926641592,-3000.0,0.0002742,2]
[335170267,1723926641602,-154.71377951,0.00027426,2]
[335170269,1723926641612,-3000.0,0.0002743,2]
[335170272,1723926641623,-3000.0,0.0002744,2]
[335170274,1723926641633,-3000.0,0.0002745,2]
[335170276,1723926641642,-3000.0,0.0002746,2]
[335170278,1723926641653,-500.0,0.00027462,2]
[335170280,1723926641663,-3000.0,0.0002747,2]
[335170282,1723926641674,-200.0,0.00027473,5]
[335170284,1723926641685,-3000.0,0.0002748,2]
[335170286,1723926641695,-3000.0,0.0002749,2]
[335170288,1723926641705,-506.0,0.000275,2]
[335170290,1723926641714,-3000.0,0.000275,2]
[335170292,1723926641724,-36530.50784315,0.000275,2]
[335170294,1723926641733,-3000.0,0.0002751,2]
[335170296,1723926641743,-15460.308762,0.0002751,3]
[335170298,1723926641753,-3000.0,0.0002752,2]
[335170300,1723926641763,-3000.0,0.0002753,2]
[335170302,1723926641772,-3000.0,0.0002754,2]
[335170304,1723926641781,-3000.0,0.0002755,2]
[335170306,1723926641791,-3000.0,0.0002756,2]
[335170308,1723926641801,-996.83420395,0.00027567,2]
[335170310,1723926641812,-3000.0,0.0002757,2]
[335170313,1723926641822,-3000.0,0.0002758,2]
[335170315,1723926641833,-3000.0,0.0002759,2]
[335170317,1723926641842,-3000.0,0.000276,2]
[335170319,1723926641853,-3000.0,0.0002761,2]
[335170321,1723926641863,-3000.0,0.0002762,2]
[335170323,1723926641873,-3000.0,0.0002763,2]
[335170325,1723926641883,-5782.102992,0.0002764,2]
[335170327,1723926641895,-2862.16299772,0.0002765,2]
[335170330,1723926641906,-516.0,0.00027671,2]
[335170332,1723926641917,-150.112233,0.000278,6]
[335170334,1723926641928,-150.112233,0.000278,5]
[335170336,1723926641937,-15460.308762,0.0002789,3]
[335170338,1723926641947,-1630.1488337,0.000279,2]
[335170340,1723926641958,-1630.1488337,0.000279,2]
[335170342,1723926641970,-1630.1488337,0.000279,2]
[335170345,1723926641982,-1630.1488337,0.000279,2]
[335170347,1723926641994,-12209.65979536,0.0002799,2]
[335170349,1723926642004,-6888.18825597,0.00028,120]
[335170350,1723926642014,-1000.0,0.00028,120]
[335170352,1723926642024,-1414.0,0.00028292,2]
[335170354,1723926642036,-8333.0,0.00028292,2]
[335170355,1723926642046,-150.0,0.00028292,2]
[335170356,1723926642057,-521.0,0.00028292,2]
[335170357,1723926642067,-603.0,0.000283,2]
[335170365,1723926642146,-2862.16299772,0.000284,2]
[335170367,1723926642157,-3990.78906292,0.00028471,2]
[335170369,1723926642167,-307.378852,0.00028493,2]
[335170372,1723926642179,-307.378852,0.00028493,8]
[335170374,1723926642190,-307.378852,0.00028493,14]
[335170376,1723926642199,-307.378852,0.00028493,20]
[335170377,1723926642208,-307.378852,0.00028493,26]
[335170379,1723926642218,-307.378852,0.00028493,33]
[335170381,1723926642228,-307.378852,0.00028493,39]
[335170383,1723926642239,-307.378852,0.00028493,45]
[335170385,1723926642250,-307.378852,0.00028493,51]
[335170386,1723926642260,-307.378852,0.00028493,57]
[335170388,1723926642270,-307.378852,0.00028493,64]
[335170390,1723926642280,-307.378852,0.00028493,70]
[335170392,1723926642290,-307.378852,0.00028493,76]
[335170394,1723926642300,-307.378852,0.00028493,82]
[335170396,1723926642310,-307.378852,0.00028493,88]
[335170398,1723926642320,-307.378852,0.00028493,95]
[335170400,1723926642331,-307.378852,0.00028493,101]
[335170401,1723926642341,-307.378852,0.00028493,107]
[335170402,1723926642352,-307.378852,0.00028493,113]
[335170403,1723926642363,-307.378852,0.00028493,120]
[335170404,1723926642374,-150.112233,0.000286,10]
[335170405,1723926642383,-150.112233,0.000286,7]
[335170406,1723926642393,-516.0,0.00028767,2]
[335170407,1723926642404,-996.83420395,0.00028789,2]
[335170408,1723926642414,-400.0,0.00028842,5]
[335170409,1723926642425,-500.0,0.00029,120]
[335170410,1723926642435,-500.0,0.00029,120]
[335170411,1723926642446,-500.0,0.00029,120]
[335170412,1723926642455,-500.0,0.00029,120]
[335170413,1723926642466,-500.0,0.00029,120]
[335170414,1723926642476,-346.35,0.00029,120]
[335170415,1723926642488,-500.0,0.00029,120]
[335170416,1723926642500,-500.0,0.00029,120]
[335170417,1723926642510,-500.0,0.00029,120]
[335170418,1723926642519,-500.0,0.00029,120]
[335170419,1723926642528,-500.0,0.00029,120]
[335170420,1723926642539,-500.0,0.00029,120]
[335170421,1723926642550,-500.0,0.00029,120]
[335170422,1723926642560,-851.998472,0.00029,2]
[335170423,1723926642571,-2862.16299772,0.00029149,2]
[335170424,1723926642581,-1152.0,0.00029266,2]
[335170425,1723926642591,-4468.55515634,0.00029309,2]
[335170426,1723926642601,-166.58095,0.00029362,2]
[335170427,1723926642611,-150.112233,0.000294,7]
[335170428,1723926642620,-150.112233,0.000294,9]
[335170429,1723926642630,-4468.55515634,0.00029537,2]
[335170430,1723926642640,-4468.55515635,0.00029677,2]
[335170431,1723926642650,-200.0,0.00029873,4]
[335170432,1723926642660,-200.0,0.00029873,5]
[335170433,1723926642669,-50326.8348437,0.0002988,30]
[335170434,1723926642679,-9920.34744249,0.00029889,3]
[335170488,1723926765807,221.49512282,0.00014519,2]
[335170489,1723926798189,160.41055449,0.00014519,2]
[335170490,1723926820370,344.263951,0.00014247,2]
[335170493,1723927326084,166.868743,0.00014247,2]
[335170495,1723927549155,-154.69833824,0.00017269,2]
[335170496,1723927549177,-908.69635138,0.00017269,2]
[335170497,1723927597172,-194.19211654,0.00017169,2]
[335170499,1723927629110,-570.76860772,0.00017169,2]
[335170500,1723927629131,-240.74853049,0.00017269,2]
[335170501,1723927629151,-995.68242694,0.00017269,2]
[335170503,1723927634108,-919.18442895,0.00017269,2]
[335170504,1723927636103,-166.31683219,0.00017269,2]
[335170505,1723927636127,-168.90323323,0.00019999,2]
[335170506,1723927641109,-704.50188412,0.00017269,2]
[335170507,1723927645248,-313.91151072,0.00017269,2]
[335170508,1723927650132,-154.07394186,0.00017269,2]
[335170509,1723927650153,-131.09676677,0.00019999,2]
[335170510,1723927650173,-156.6016576,0.0002,2]
[335170511,1723927650194,-1407.77797506,0.0002,2]
[335170546,1723927832330,-300.0,0.00019999,2]
[335170548,1723927832340,-300.0,0.00019999,2]
[335170550,1723927832350,-592.22202494,0.0002,2]
[335170551,1723927832359,-1266.38788426,0.0002,2]
[335170579,1723927840587,-733.61211574,0.0002,2]
[335170582,1723927840597,-211.39788416,0.0002,2]
[335170587,1723927840642,-1788.60211584,0.0002,2]
[335170589,1723927840651,-776.0,0.0002,2]
[335170591,1723927840661,-2000.0,0.0002,2]
[335170593,1723927840670,-2000.0,0.0002,2]
[335170595,1723927840680,-812.0,0.0002,2]
[335170597,1723927840689,-1362.94528764,0.0002,2]
[335170599,1723927840698,-156.6016576,0.0002,2]
[335170601,1723927840708,-10506.43940705,0.0002,2]
[335170603,1723927840717,-10506.43940705,0.0002,2]
[335170605,1723927840727,-87310.32622718,0.0002,2]
[335170607,1723927840738,-39129.43248447,0.0002,2]
[335170609,1723927840748,-344.263951,0.00020707,2]
[335170612,1723927840757,-500.0,0.00020931,2]
[335170613,1723927840766,-331.44880488,0.00020931,2]
[335170616,1723927840777,-500.0,0.00020931,2]
[335170618,1723927840786,-500.0,0.00020931,2]
[335170620,1723927840796,-500.0,0.00020931,2]
[335170622,1723927840806,-500.0,0.00020931,2]
[335170624,1723927840815,-500.0,0.00020931,2]
[335170626,1723927840825,-500.0,0.00020931,2]
[335170628,1723927840834,-500.0,0.00020931,2]
[335170630,1723927840843,-278.68285585,0.00020931,2]
[335170632,1723927840853,-500.0,0.00020931,2]
[335170634,1723927840863,-500.0,0.00020931,2]
[335170636,1723927840873,-500.0,0.00020931,2]
[335170638,1723927840883,-500.0,0.00020931,2]
[335170640,1723927840893,-500.0,0.00020931,2]
[335170642,1723927840903,-500.0,0.00020931,2]
[335170644,1723927840912,-500.0,0.00020931,2]
[335170646,1723927840921,-500.0,0.00020931,2]
[335170648,1723927840930,-500.0,0.00020931,2]
[335170650,1723927840940,-500.0,0.00020931,2]
[335170652,1723927840949,-500.0,0.00020931,2]
[335170654,1723927840959,-500.0,0.00020931,2]
[335170656,1723927840968,-500.0,0.00020931,2]
[335170658,1723927840977,-500.0,0.00020931,2]
[335170660,1723927840987,-500.0,0.00020931,2]
[335170662,1723927840996,-500.0,0.00020931,2]
[335170664,1723927841006,-500.0,0.00020931,2]
[335170666,1723927841016,-500.0,0.00020931,2]
[335170668,1723927841025,-500.0,0.00020931,2]
[335170670,1723927841037,-500.0,0.00020931,2]
[335170672,1723927841047,-500.0,0.00020931,2]
[335170674,1723927841057,-500.0,0.00020931,2]
[335170676,1723927841066,-500.0,0.00020931,2]
[335170678,1723927841075,-500.0,0.00020931,2]
[335170680,1723927841086,-526.48592791,0.00020931,2]
[335170682,1723927841095,-500.0,0.00020931,2]
[335170683,1723927841104,-2127.07450646,0.00020932,2]
[335170684,1723927841118,-300.0,0.00021777,2]
[335170685,1723927841127,-420.0,0.00021999,2]
[335170686,1723927841137,-585.724632,0.00022116,2]
[335170687,1723927841146,-104.06912362,0.00022246,2]
[335170688,1723927843473,-21.57690184,0.00022246,2]
[335170723,1723927861820,245.0,0.00014247,2]
[335170724,1723927861843,76.427427,0.00014247,2]
[335170725,1723927879063,87.97374994,0.00017269,2]
[335170727,1723927956514,154.7755785,0.00014519,2]
[335170729,1723927960768,154.7755785,0.00014519,2]
[335170730,1723927979165,174.75672236,0.00014519,2]
[335170731,1723928026056,204.27539674,0.00014519,2]
[335170733,1723928353691,190.123138,0.00014247,2]
[335170741,1723928731118,-191.95034667,0.00017169,2]
[335170742,1723928731140,-154.80649189,0.00017259,2]
[335170743,1723928731162,-1440.26337518,0.00017269,2]
[335170749,1723928834662,150.5,0.0001999,120]
[335170750,1723928835144,257.64,0.0001998,120]
[335170751,1723928837092,-154.68290005,0.00017269,2]
[335170752,1723928837121,-1840.54224963,0.0001728,2]
[335170753,1723928838139,-902.75032749,0.0001728,2]
[335170754,1723928842135,-147.15080888,0.0001728,2]
[335170755,1723928842157,-300.0,0.0001784,2]
[335170756,1723928842180,-763.56551264,0.00017841,2]
[335170757,1723928845106,-698.30114303,0.00017841,2]
[335170758,1723928850054,305.356055,0.00014247,2]
[335170759,1723928851112,-9406.60560963,0.00017841,2]
[335170774,1723928949110,-466.2591763,0.0001699,2]
[335170775,1723928949134,-2993.616441,0.00017026,2]
[335170776,1723928949158,-1076.06914217,0.00017195,2]
[335170777,1723928974133,-164.40117694,0.00017195,2]
[335170778,1723929011103,217.39016863,0.00015001,2]
[335170874,1723929038691,-595.0,0.00017195,2]
[335170879,1723929038747,-1164.52968089,0.00017195,2]
[335170881,1723929038758,-172.16658063,0.00017195,2]
[335170883,1723929038768,-300.0,0.0001784,2]
[335170885,1723929038777,-14031.5277347,0.00017841,2]
[335170887,1723929038787,-207.15720901,0.00017972,2]
[335170888,1723929038799,-3492.39552228,0.00017972,2]
[335170890,1723929038808,-500.0,0.00018071,2]
[335170892,1723929038820,-500.0,0.00018071,2]
[335170894,1723929038831,-500.0,0.00018071,2]
[335170896,1723929038841,-145.21476648,0.00018071,2]
[335170897,1723929038867,-354.78523352,0.00018071,2]
[335170898,1723929038876,-500.0,0.00018071,2]
[335170899,1723929038886,-154.76012181,0.00018071,2]
[335170900,1723929038897,-331.44880488,0.00018071,2]
[335170901,1723929038908,-300.68857708,0.00018071,2]
[335170902,1723929038917,-500.0,0.00018071,2]
[335170903,1723929038928,-500.0,0.00018071,2]
[335170904,1723929038939,-472.15241132,0.00018071,2]
[335170905,1723929038949,-500.0,0.00018071,2]
[335170906,1723929038960,-500.0,0.00018071,2]
[335170907,1723929038971,-500.0,0.00018071,2]
[335170908,1723929038982,-500.0,0.00018071,2]
[335170909,1723929038991,-500.0,0.00018071,2]
[335170910,1723929039001,-500.0,0.00018071,2]
[335170911,1723929039011,-500.0,0.00018071,2]
[335170912,1723929039022,-500.0,0.00018071,2]
[335170913,1723929039032,-500.0,0.00018071,2]
[335170914,1723929039042,-500.0,0.00018071,2]
[335170915,1723929039052,-500.0,0.00018071,2]
[335170916,1723929039062,-500.0,0.00018071,2]
[335170917,1723929039073,-500.0,0.00018071,2]
[335170918,1723929039083,-500.0,0.00018071,2]
[335170919,1723929039094,-500.0,0.00018071,2]
[335170920,1723929039103,-500.0,0.00018071,2]
[335170921,1723929039114,-500.0,0.00018071,2]
[335170922,1723929039125,-500.0,0.00018071,2]
[335170923,1723929039134,-500.0,0.00018071,2]
[335170924,1723929039144,-500.0,0.00018071,2]
[335170925,1723929039155,-500.0,0.00018071,2]
[335170926,1723929039166,-500.0,0.00018071,2]
[335170927,1723929039175,-512.44622753,0.00018071,2]
[335170928,1723929039187,-500.0,0.00018071,2]
[335170929,1723929039197,-500.0,0.00018071,2]
[335170930,1723929039206,-500.0,0.00018071,2]
[335170931,1723929039217,-500.0,0.00018071,2]
[335170932,1723929039229,-500.0,0.00018071,2]
[335170933,1723929039239,-500.0,0.00018071,2]
[335170934,1723929039251,-500.0,0.00018071,2]
[335170935,1723929039262,-500.0,0.00018071,2]
[335170936,1723929039273,-500.0,0.00018071,2]
[335170937,1723929039284,-500.0,0.00018071,2]
[335170938,1723929039294,-500.0,0.00018071,2]
[335170939,1723929039305,-678.1731368,0.00018219,2]
[335170940,1723929039316,-250.0,0.00018463,2]
[335170941,1723929039327,-250.0,0.00018513,2]
[335170942,1723929039338,-250.0,0.00018564,2]
[335170943,1723929039349,-250.0,0.00018615,2]
[335170944,1723929039359,-250.0,0.00018665,2]
[335170945,1723929039369,-250.0,0.00018716,2]
[335170946,1723929039382,-250.0,0.00018767,2]
[335170947,1723929039392,-205.84891445,0.00018807,2]
[335170948,1723929039401,-250.0,0.00018817,2]
[335170949,1723929039412,-250.0,0.00018868,2]